fUST/lending_fUST_20250520
["ID","MTS","AMOUNT","RATE_DAILY","PERIOD"]
[361737437,1747739446193,-430.0,0.00016712,2]
[361737438,1747739446204,-430.0,0.00016712,2]
[361737440,1747739446214,-430.0,0.00016712,2]
[361737442,1747739446224,-430.0,0.00016712,2]
[361737443,1747739446234,-389.83367174,0.00016712,2]
[361737444,1747739446244,-430.0,0.00016712,2]
[361737445,1747739446254,-430.0,0.00016712,2]
[361737446,1747739446263,-400.0,0.00016712,2]
[361737447,1747739446278,-430.0,0.00016712,2]
[361737448,1747739446288,-430.0,0.00016712,2]
[361737449,1747739446297,-430.0,0.00016712,2]
[361737450,1747739446307,-430.0,0.00016712,2]
[361737451,1747739446318,-430.0,0.00016712,2]
[361737452,1747739446329,-430.0,0.00016712,2]
[361737453,1747739446339,-270.0,0.00016712,2]
[361737454,1747739446351,-430.0,0.00016712,2]
[361737455,1747739446362,-270.0,0.00016712,2]
[361737456,1747739446372,-1193.64,0.00016712,2]
[361737457,1747739446382,-430.0,0.00016712,2]
[361737458,1747739446392,-430.0,0.00016712,2]
[361737459,1747739446402,-430.0,0.00016712,2]
[361737460,1747739446412,-432.12,0.00016712,2]
[361737461,1747739446422,-787.85,0.00016712,2]
[361737462,1747739446431,-470.0,0.00016712,2]
[361737463,1747739446441,-430.0,0.00016712,2]
[361737464,1747739446451,-430.0,0.00016712,2]
[361737465,1747739446461,-911.84,0.00016712,2]
[361737466,1747739446470,-430.0,0.00016712,2]
[361737467,1747739446479,-430.0,0.00016712,2]
[361737468,1747739446489,-430.0,0.00016712,2]
[361737469,1747739446499,-430.0,0.00016712,2]
[361737470,1747739446508,-430.0,0.00016712,2]
[361737471,1747739446519,-572.98,0.00016712,2]
[361737472,1747739446530,-430.0,0.00016712,2]
[361737473,1747739446540,-430.0,0.00016712,2]
[361737474,1747739446550,-430.0,0.00016712,2]
[361737475,1747739446561,-194.36615569,0.00016712,2]
[361737476,1747739446571,-256.9678111,0.00016712,2]
[361737477,1747739446581,-470.0,0.00016712,2]
[361737478,1747739446591,-430.0,0.00016712,2]
[361737479,1747739446600,-564.54,0.00016712,2]
[361737480,1747739446610,-393.66,0.00016712,2]
[361737481,1747739446620,-320.0,0.00016712,2]
[361737482,1747739446631,-430.0,0.00016712,2]
[361737483,1747739446640,-430.0,0.00016712,2]
[361737484,1747739446650,-430.0,0.00016712,2]
[361737485,1747739446661,-430.0,0.00016712,2]
[361737486,1747739446670,-373.49633004,0.00016712,2]
[361737487,1747739446680,-550.4,0.00016712,2]
[361737488,1747739446690,-320.0,0.00016712,2]
[361737489,1747739446699,-1315.4,0.00016712,2]
[361737490,1747739446710,-430.0,0.00016712,2]
[361737491,1747739446719,-430.0,0.00016712,2]
[361737492,1747739446730,-430.0,0.00016712,2]
[361737493,1747739446740,-165.35689397,0.00016712,2]
[361737494,1747739446749,-370.0,0.00016712,2]
[361737495,1747739446759,-430.0,0.00016712,2]
[361737496,1747739446768,-430.0,0.00016712,2]
[361737497,1747739446778,-234.4739206,0.00016712,2]
[361737498,1747739446787,-474.40893447,0.00016712,2]
[361737499,1747739446797,-2867.28,0.00016712,2]
[361737500,1747739446972,-430.0,0.00016712,2]
[361737501,1747739446984,-430.0,0.00016712,2]
[361737502,1747739446994,-430.0,0.00016712,2]
[361737503,1747739447005,-430.0,0.00016712,2]
[361737504,1747739447016,-393.9916574,0.00016712,2]
[361737505,1747739447026,-430.0,0.00016712,2]
[361737506,1747739447036,-380.87740925,0.00016712,2]
[361737507,1747739447045,-430.0,0.00016712,2]
[361737508,1747739447055,-1096.73,0.00016712,2]
[361737509,1747739447065,-430.0,0.00016712,2]
[361737510,1747739447077,-430.9,0.00016712,2]
[361737511,1747739447087,-430.0,0.00016712,2]
[361737512,1747739447096,-430.0,0.00016712,2]
[361737513,1747739447106,-378.29108148,0.00016712,2]
[361737514,1747739447116,-430.0,0.00016712,2]
[361737515,1747739447126,-430.0,0.00016712,2]
[361737516,1747739447136,-430.0,0.00016712,2]
[361737517,1747739447146,-374.00657455,0.00016712,2]
[361737518,1747739447156,-450.0,0.00016712,2]
[361737519,1747739447166,-430.0,0.00016712,2]
[361737520,1747739447176,-430.0,0.00016712,2]
[361737521,1747739447186,-370.0,0.00016712,2]
[361737522,1747739447196,-430.0,0.00016712,2]
[361737523,1747739447206,-376.98673943,0.00016712,2]
[361737524,1747739447216,-993.99,0.00016712,2]
[361737525,1747739447226,-430.0,0.00016712,2]
[361737526,1747739447237,-3413.09,0.00016712,2]
[361737527,1747739447247,-732.7,0.00016712,2]
[361737528,1747739447256,-1300.99,0.00016712,2]
[361737529,1747739447266,-339.77886499,0.00016712,2]
[361737530,1747739447279,-448.62,0.00016712,2]
[361737531,1747739447290,-430.0,0.00016712,2]
[361737532,1747739447300,-430.0,0.00016712,2]
[361737533,1747739447310,-430.0,0.00016712,2]
[361737534,1747739447321,-430.0,0.00016712,2]
[361737535,1747739447331,-430.0,0.00016712,2]
[361737536,1747739447341,-575.1,0.00016712,2]
[361737537,1747739447354,-430.0,0.00016712,2]
[361737538,1747739447365,-430.0,0.00016712,2]
[361737539,1747739447374,-531.68824471,0.00016712,2]
[361737540,1747739447384,-430.0,0.00016712,2]
[361737541,1747739447394,-430.0,0.00016712,2]
[361737542,1747739447404,-430.0,0.00016712,2]
[361737543,1747739447414,-430.0,0.00016712,2]
[361737544,1747739447423,-1031.05,0.00016712,2]
[361737545,1747739447433,-1270.75,0.00016712,2]
[361737546,1747739447443,-430.0,0.00016712,2]
[361737547,1747739447453,-430.0,0.00016712,2]
[361737548,1747739447463,-430.0,0.00016712,2]
[361737549,1747739447473,-320.0,0.00016712,2]
[361737550,1747739447482,-430.0,0.00016712,2]
[361737551,1747739447491,-2694.01,0.00016712,2]
[361737552,1747739447501,-320.0,0.00016712,2]
[361737553,1747739447512,-1194.75,0.00016712,2]
[361737554,1747739447522,-430.0,0.00016712,2]
[361737555,1747739447532,-1282.3706544,0.00016929,2]
[361737556,1747739447541,-10443.78733156,0.00016934,2]
[361737557,1747739447551,-500.0,0.00016967,2]
[361737558,1747739447561,-500.0,0.00016967,2]
[361737559,1747739447571,-500.0,0.00016967,2]
[361737560,1747739447581,-500.0,0.00016967,2]
[361737561,1747739447599,-430.0,0.00016986,2]
[361737562,1747739447609,-290.0,0.00016986,2]
[361737563,1747739447620,-290.0,0.00016986,2]
[361737564,1747739447630,-430.0,0.00016986,2]
[361737565,1747739447640,-430.0,0.00016986,2]
[361737566,1747739447649,-430.0,0.00016986,2]
[361737567,1747739447658,-430.0,0.00016986,2]
[361737568,1747739447668,-430.0,0.00016986,2]
[361737569,1747739447677,-430.0,0.00016986,2]
[361737570,1747739447687,-430.0,0.00016986,2]
[361737571,1747739447698,-430.0,0.00016986,2]
[361737572,1747739447707,-430.0,0.00016986,2]
[361737573,1747739447717,-430.0,0.00016986,2]
[361737574,1747739447727,-430.0,0.00016986,2]
[361737575,1747739447738,-430.0,0.00016986,2]
[361737576,1747739447748,-430.0,0.00016986,2]
[361737577,1747739447759,-430.0,0.00016986,2]
[361737578,1747739447769,-430.0,0.00016986,2]
[361737579,1747739447779,-430.0,0.00016986,2]
[361737580,1747739447790,-430.0,0.00016986,2]
[361737581,1747739447801,-430.0,0.00016986,2]
[361737582,1747739447811,-490.0,0.00016986,2]
[361737583,1747739447820,-173.09082452,0.00016986,2]
[361737584,1747739447830,-430.0,0.00016986,2]
[361737585,1747739447840,-430.0,0.00016986,2]
[361737586,1747739447850,-346.64266024,0.00016986,2]
[361737587,1747739447860,-1193.64,0.00016986,2]
[361737588,1747739447870,-344.53332574,0.00016986,2]
[361737589,1747739447880,-430.0,0.00016986,2]
[361737590,1747739447889,-430.0,0.00016986,2]
[361737591,1747739447900,-432.12,0.00016986,2]
[361737592,1747739447910,-787.85,0.00016986,2]
[361737593,1747739447920,-430.0,0.00016986,2]
[361737594,1747739447930,-430.0,0.00016986,2]
[361737595,1747739447940,-911.84,0.00016986,2]
[361737596,1747739447950,-430.0,0.00016986,2]
[361737597,1747739447960,-430.0,0.00016986,2]
[361737598,1747739447971,-340.0,0.00016986,2]
[361737599,1747739447981,-430.0,0.00016986,2]
[361737600,1747739447991,-430.0,0.00016986,2]
[361737601,1747739448001,-572.98,0.00016986,2]
[361737602,1747739448011,-430.0,0.00016986,2]
[361737603,1747739448021,-356.54173381,0.00016986,2]
[361737604,1747739448031,-344.47158068,0.00016986,2]
[361737605,1747739448042,-430.0,0.00016986,2]
[361737606,1747739448051,-564.54,0.00016986,2]
[361737607,1747739448062,-430.0,0.00016986,2]
[361737608,1747739448072,-363.60655619,0.00016986,2]
[361737609,1747739448082,-430.0,0.00016986,2]
[361737610,1747739448093,-250.68733923,0.00016986,2]
[361737611,1747739448103,-550.4,0.00016986,2]
[361737612,1747739448113,-1315.4,0.00016986,2]
[361737613,1747739448123,-430.0,0.00016986,2]
[361737614,1747739448133,-430.0,0.00016986,2]
[361737615,1747739448143,-430.0,0.00016986,2]
[361737616,1747739448153,-430.0,0.00016986,2]
[361737617,1747739448164,-430.0,0.00016986,2]
[361737618,1747739448174,-2867.28,0.00016986,2]
[361737619,1747739448184,-430.0,0.00016986,2]
[361737620,1747739448194,-430.0,0.00016986,2]
[361737621,1747739448204,-430.0,0.00016986,2]
[361737622,1747739448214,-430.0,0.00016986,2]
[361737623,1747739448224,-219.94858451,0.00016986,2]
[361737624,1747739448234,-430.0,0.00016986,2]
[361737625,1747739448244,-1096.73,0.00016986,2]
[361737626,1747739448254,-430.0,0.00016986,2]
[361737627,1747739448263,-430.9,0.00016986,2]
[361737628,1747739448275,-384.24723088,0.00016986,2]
[361737629,1747739448285,-430.0,0.00016986,2]
[361737630,1747739448295,-430.0,0.00016986,2]
[361737631,1747739448304,-430.0,0.00016986,2]
[361737632,1747739448315,-430.0,0.00016986,2]
[361737633,1747739448325,-430.0,0.00016986,2]
[361737634,1747739448336,-293.53751689,0.00016986,2]
[361737635,1747739448345,-430.0,0.00016986,2]
[361737636,1747739448355,-993.99,0.00016986,2]
[361737637,1747739448366,-430.0,0.00016986,2]
[361737638,1747739448376,-3413.09,0.00016986,2]
[361737639,1747739448385,-732.7,0.00016986,2]
[361737640,1747739448395,-1300.99,0.00016986,2]
[361737641,1747739448405,-448.62,0.00016986,2]
[361737642,1747739448417,-430.0,0.00016986,2]
[361737643,1747739448429,-430.0,0.00016986,2]
[361737644,1747739448439,-521.06959829,0.00016986,2]
[361737645,1747739448448,-430.0,0.00016986,2]
[361737646,1747739448457,-340.0,0.00016986,2]
[361737647,1747739448466,-575.1,0.00016986,2]
[361737648,1747739448476,-340.0,0.00016986,2]
[361737649,1747739448486,-430.0,0.00016986,2]
[361737650,1747739448496,-430.0,0.00016986,2]
[361737651,1747739448506,-430.0,0.00016986,2]
[361737652,1747739448515,-430.0,0.00016986,2]
[361737653,1747739448525,-430.0,0.00016986,2]
[361737654,1747739448535,-1031.05,0.00016986,2]
[361737655,1747739448545,-1270.75,0.00016986,2]
[361737656,1747739448555,-430.0,0.00016986,2]
[361737657,1747739448565,-430.0,0.00016986,2]
[361737658,1747739448575,-430.0,0.00016986,2]
[361737659,1747739448586,-430.0,0.00016986,2]
[361737660,1747739448596,-2694.01,0.00016986,2]
[361737661,1747739448607,-1194.75,0.00016986,2]
[361737662,1747739448617,-430.0,0.00016986,2]
[361737663,1747739448627,-500.0,0.00016997,2]
[361737664,1747739448637,-500.0,0.00016997,2]
[361737665,1747739448647,-500.0,0.00016997,2]
[361737666,1747739448657,-500.0,0.00016997,2]
[361737667,1747739448667,-345.40813738,0.00017038,2]
[361737668,1747739448688,-500.0,0.00017049,2]
[361737669,1747739448700,-201.88166131,0.00017049,2]
[361737670,1747739448710,-500.0,0.00017049,2]
[361737671,1747739448721,-500.0,0.00017065,2]
[361737672,1747739448731,-500.0,0.00017093,2]
[361737673,1747739448741,-500.0,0.00017118,2]
[361737674,1747739448750,-588.9767285,0.00017118,2]
[361737675,1747739448761,-422.65292303,0.00017124,2]
[361737676,1747739448771,-160.0,0.00017124,2]
[361737677,1747739448782,-12636.50182523,0.00017124,2]
[361737678,1747739448793,-212.38718278,0.00017124,2]
[361737679,1747739448803,-160.0,0.00017124,2]
[361737680,1747739448813,-160.0,0.00017124,2]
[361737681,1747739448824,-160.0,0.00017124,2]
[361737682,1747739448834,-160.0,0.00017124,2]
[361737683,1747739448844,-160.0,0.00017124,2]
[361737684,1747739448855,-160.0,0.00017125,2]
[361737685,1747739448865,-955.55125758,0.00017193,2]
[361737686,1747739448876,-420.0,0.00017199,2]
[361737687,1747739448886,-420.0,0.000172,2]
[361737688,1747739448897,-547.0,0.00017207,2]
[361737689,1747739448908,-2235.0,0.00017207,2]
[361737690,1747739448919,-707.0,0.00017207,2]
[361737691,1747739448930,-172.21137588,0.00017209,2]
[361737692,1747739448941,-430.0,0.0001726,2]
[361737693,1747739448952,-430.0,0.0001726,2]
[361737694,1747739448963,-317.08283724,0.0001726,2]
[361737695,1747739448973,-430.0,0.0001726,2]
[361737696,1747739448984,-430.0,0.0001726,2]
[361737697,1747739448995,-430.0,0.0001726,2]
[361737698,1747739449006,-485.87930323,0.0001726,2]
[361737699,1747739449017,-430.0,0.0001726,2]
[361737700,1747739449027,-430.0,0.0001726,2]
[361737701,1747739449037,-430.0,0.0001726,2]
[361737702,1747739449049,-430.0,0.0001726,2]
[361737703,1747739449059,-430.0,0.0001726,2]
[361737704,1747739449070,-430.0,0.0001726,2]
[361737705,1747739449080,-510.0,0.0001726,2]
[361737706,1747739449091,-430.0,0.0001726,2]
[361737707,1747739449102,-430.0,0.0001726,2]
[361737708,1747739449113,-430.0,0.0001726,2]
[361737709,1747739449124,-430.0,0.0001726,2]
[361737710,1747739449134,-430.0,0.0001726,2]
[361737711,1747739449144,-430.0,0.0001726,2]
[361737712,1747739449154,-430.0,0.0001726,2]
[361737713,1747739449165,-1193.64,0.0001726,2]
[361737714,1747739449174,-430.0,0.0001726,2]
[361737715,1747739449184,-510.0,0.0001726,2]
[361737716,1747739449194,-432.12,0.0001726,2]
[361737717,1747739449204,-787.85,0.0001726,2]
[361737718,1747739449214,-469.89587848,0.0001726,2]
[361737719,1747739449224,-430.0,0.0001726,2]
[361737720,1747739449235,-911.84,0.0001726,2]
[361737721,1747739449245,-430.0,0.0001726,2]
[361737722,1747739449255,-198.95792887,0.0001726,2]
[361737723,1747739449631,-228.66300593,0.00016438,2]
[361737724,1747739449641,-231.04207113,0.0001726,2]
[361737725,1747739449651,-430.0,0.0001726,2]
[361737726,1747739449661,-430.0,0.0001726,2]
[361737727,1747739449671,-572.98,0.0001726,2]
[361737728,1747739449680,-430.0,0.0001726,2]
[361737729,1747739449690,-430.0,0.0001726,2]
[361737730,1747739449699,-564.54,0.0001726,2]
[361737731,1747739449709,-335.68939319,0.0001726,2]
[361737732,1747739449721,-94.31060681,0.0001726,2]
[361737733,1747739449730,-430.0,0.0001726,2]
[361737734,1747739449740,-550.4,0.0001726,2]
[361737735,1747739449749,-584.86300006,0.0001726,2]
[361737736,1747739449761,-730.53699994,0.0001726,2]
[361737737,1747739449772,-430.0,0.0001726,2]
[361737738,1747739449782,-430.0,0.0001726,2]
[361737739,1747739449793,-430.0,0.0001726,2]
[361737740,1747739449803,-430.0,0.0001726,2]
[361737741,1747739449812,-430.0,0.0001726,2]
[361737742,1747739449822,-155.8745835,0.0001726,2]
[361737743,1747739449834,-2711.4054165,0.0001726,2]
[361737744,1747739449844,-430.0,0.0001726,2]
[361737745,1747739449853,-430.0,0.0001726,2]
[361737746,1747739449863,-430.0,0.0001726,2]
[361737747,1747739449873,-430.0,0.0001726,2]
[361737748,1747739449885,-430.0,0.0001726,2]
[361737749,1747739449894,-1096.73,0.0001726,2]
[361737750,1747739449904,-430.0,0.0001726,2]
[361737751,1747739449914,-430.9,0.0001726,2]
[361737752,1747739449924,-430.0,0.0001726,2]
[361737753,1747739449935,-430.0,0.0001726,2]
[361737754,1747739449944,-430.0,0.0001726,2]
[361737755,1747739449953,-430.0,0.0001726,2]
[361737756,1747739449963,-430.0,0.0001726,2]
[361737757,1747739449973,-430.0,0.0001726,2]
[361737758,1747739449984,-98.19757116,0.0001726,2]
[361737759,1747739449997,-895.79242884,0.0001726,2]
[361737760,1747739450007,-430.0,0.0001726,2]
[361737761,1747739450017,-3413.09,0.0001726,2]
[361737762,1747739450027,-732.7,0.0001726,2]
[361737763,1747739450037,-1300.99,0.0001726,2]
[361737764,1747739450046,-448.62,0.0001726,2]
[361737765,1747739450056,-430.0,0.0001726,2]
[361737766,1747739450066,-510.0,0.0001726,2]
[361737767,1747739450076,-430.0,0.0001726,2]
[361737768,1747739450085,-575.1,0.0001726,2]
[361737769,1747739450097,-430.0,0.0001726,2]
[361737770,1747739450107,-430.0,0.0001726,2]
[361737771,1747739450117,-430.0,0.0001726,2]
[361737772,1747739450127,-430.0,0.0001726,2]
[361737773,1747739450137,-430.0,0.0001726,2]
[361737774,1747739450147,-1270.75,0.0001726,2]
[361737775,1747739450158,-430.0,0.0001726,2]
[361737776,1747739450170,-430.0,0.0001726,2]
[361737777,1747739450181,-430.0,0.0001726,2]
[361737778,1747739450191,-430.0,0.0001726,2]
[361737779,1747739450202,-1031.05,0.0001726,2]
[361737780,1747739450212,-2694.01,0.0001726,2]
[361737781,1747739450222,-1194.75,0.0001726,2]
[361737782,1747739450232,-291.46421048,0.0001726,2]
[361737783,1747739450242,-1567.23866116,0.00017279,2]
[361737784,1747739450253,-500.64614544,0.00017279,2]
[361737785,1747739450264,-892.3,0.00017279,2]
[361737786,1747739450279,-1155.91288325,0.00017279,2]
[361737788,1747739489759,178.476334,0.00027397,120]
[361737795,1747740160669,1729.39,0.00027397,120]
[361737797,1747740242906,-172.58301585,0.00013562,2]
[361737798,1747740244459,-51.63019885,0.00013562,2]
[361737807,1747740403571,500.0,0.000273,120]
[361737811,1747740472029,3480.0,0.00027397,120]
[361737812,1747740523337,178.476334,0.00027397,120]
[361737814,1747740527070,301.99999946,0.0002,120]
[361737839,1747740632611,-197.821485,0.00013699,2]
[361737840,1747740632622,-3276.18696416,0.00015,2]
[361737841,1747740632635,-2169.4375307,0.00015308,2]
[361737842,1747740632646,-160.0,0.00016228,2]
[361737843,1747740632655,-1200.0,0.00016263,2]
[361737844,1747740632666,-300.0,0.00016264,2]
[361737845,1747740632675,-300.0,0.00016264,2]
[361737846,1747740632686,-300.0,0.00016264,2]
[361737847,1747740632695,-22838.27979952,0.00016266,2]
[361737848,1747740632708,-1040.75891475,0.00016266,2]
[361738014,1747740638031,-300.0,0.00016264,2]
[361738015,1747740638041,-1020.96128573,0.00016266,2]
[361738016,1747740638051,-250.0,0.00016311,2]
[361738017,1747740638062,-259.05610307,0.00016338,2]
[361738018,1747740638073,-187.82182367,0.00016338,2]
[361738019,1747740638083,-151.0,0.0001643,2]
[361738020,1747740638092,-207.4,0.0001643,2]
[361738021,1747740638102,-500.0,0.00016437,2]
[361738022,1747740638112,-500.0,0.00016437,2]
[361738023,1747740638123,-500.0,0.00016437,2]
[361738024,1747740638134,-446.32203681,0.00016437,2]
[361738025,1747740638144,-500.0,0.00016437,2]
[361738026,1747740638155,-500.0,0.00016437,2]
[361738027,1747740638166,-500.0,0.00016437,2]
[361738028,1747740638176,-500.0,0.00016437,2]
[361738029,1747740638186,-500.0,0.00016437,2]
[361738030,1747740638197,-460.1719351,0.00016437,2]
[361738031,1747740638206,-500.0,0.00016437,2]
[361738032,1747740638216,-503.54992623,0.00016437,2]
[361738033,1747740638226,-500.0,0.00016437,2]
[361738034,1747740638236,-500.0,0.00016437,2]
[361738035,1747740638245,-500.0,0.00016437,2]
[361738036,1747740638257,-500.0,0.00016437,2]
[361738037,1747740638267,-500.0,0.00016437,2]
[361738038,1747740638276,-500.0,0.00016437,2]
[361738039,1747740638288,-500.0,0.00016437,2]
[361738040,1747740638297,-500.0,0.00016437,2]
[361738041,1747740638307,-500.0,0.00016437,2]
[361738042,1747740638317,-500.0,0.00016437,2]
[361738043,1747740638326,-500.0,0.00016437,2]
[361738044,1747740638336,-500.0,0.00016437,2]
[361738045,1747740638345,-500.0,0.00016437,2]
[361738046,1747740638355,-500.0,0.00016437,2]
[361738047,1747740638364,-500.0,0.00016437,2]
[361738048,1747740638374,-500.0,0.00016437,2]
[361738049,1747740638383,-500.0,0.00016437,2]
[361738050,1747740638393,-500.0,0.00016437,2]
[361738051,1747740638402,-500.0,0.00016437,2]
[361738052,1747740638412,-500.0,0.00016437,2]
[361738053,1747740638422,-330.73085571,0.00016437,2]
[361738054,1747740638431,-500.0,0.00016437,2]
[361738055,1747740638441,-500.0,0.00016437,2]
[361738056,1747740638449,-500.0,0.00016437,2]
[361738057,1747740638458,-500.0,0.00016437,2]
[361738058,1747740638467,-500.0,0.00016437,2]
[361738059,1747740638475,-500.0,0.00016437,2]
[361738060,1747740638484,-500.0,0.00016437,2]
[361738061,1747740638493,-500.0,0.00016437,2]
[361738062,1747740638502,-500.0,0.00016437,2]
[361738063,1747740638511,-500.0,0.00016437,2]
[361738064,1747740638521,-582.50211868,0.00016437,2]
[361738065,1747740638531,-500.0,0.00016437,2]
[361738066,1747740638543,-500.0,0.00016437,2]
[361738067,1747740638553,-500.0,0.00016437,2]
[361738068,1747740638563,-500.0,0.00016437,2]
[361738069,1747740638573,-500.0,0.00016437,2]
[361738070,1747740638583,-500.0,0.00016437,2]
[361738071,1747740638592,-500.0,0.00016437,2]
[361738072,1747740638602,-500.0,0.00016437,2]
[361738073,1747740638612,-500.0,0.00016437,2]
[361738074,1747740638621,-500.0,0.00016437,2]
[361738075,1747740638633,-500.0,0.00016437,2]
[361738076,1747740638643,-500.0,0.00016437,2]
[361738077,1747740638653,-500.0,0.00016437,2]
[361738078,1747740638662,-500.0,0.00016437,2]
[361738079,1747740638674,-500.0,0.00016437,2]
[361738080,1747740638684,-500.0,0.00016437,2]
[361738081,1747740638693,-500.0,0.00016437,2]
[361738082,1747740638702,-500.0,0.00016437,2]
[361738083,1747740638712,-508.25021187,0.00016437,2]
[361738084,1747740638720,-500.0,0.00016437,2]
[361738085,1747740638730,-500.0,0.00016437,2]
[361738086,1747740638740,-450.0,0.00016438,2]
[361738087,1747740638751,-400.0,0.00016438,2]
[361738088,1747740638760,-478.78830593,0.00016438,2]
[361738089,1747740638770,-430.0,0.00016438,2]
[361738090,1747740638780,-521.95540922,0.00016438,2]
[361738091,1747740638790,-510.19861097,0.00016438,2]
[361738092,1747740638802,-353.32409051,0.00016438,2]
[361738093,1747740638811,-400.0,0.00016438,2]
[361738094,1747740638821,-400.0,0.00016438,2]
[361738095,1747740638830,-430.0,0.00016438,2]
[361738096,1747740638839,-430.0,0.00016438,2]
[361738097,1747740638849,-356.47053305,0.00016438,2]
[361738098,1747740638859,-430.0,0.00016438,2]
[361738099,1747740638868,-430.0,0.00016438,2]
[361738100,1747740638878,-430.0,0.00016438,2]
[361738101,1747740638887,-350.0,0.00016438,2]
[361738102,1747740638897,-350.0,0.00016438,2]
[361738103,1747740638907,-350.0,0.00016438,2]
[361738104,1747740638916,-253.1954158,0.00016438,2]
[361738105,1747740638926,-430.0,0.00016438,2]
[361738106,1747740638935,-180.02945918,0.00016438,2]
[361738107,1747740638945,-430.0,0.00016438,2]
[361738108,1747740638954,-154.31699698,0.00016438,2]
[361738109,1747740638963,-350.0,0.00016438,2]
[361738110,1747740638972,-350.0,0.00016438,2]
[361738111,1747740638982,-430.0,0.00016438,2]
[361738112,1747740638992,-350.0,0.00016438,2]
[361738113,1747740639002,-430.0,0.00016438,2]
[361738114,1747740639011,-430.0,0.00016438,2]
[361738115,1747740639021,-180.95604686,0.00016438,2]
[361738116,1747740639031,-430.0,0.00016438,2]
[361738117,1747740639040,-350.0,0.00016438,2]
[361738118,1747740639050,-430.0,0.00016438,2]
[361738119,1747740639059,-350.0,0.00016438,2]
[361738120,1747740639069,-544.68687416,0.00016438,2]
[361738121,1747740639078,-430.0,0.00016438,2]
[361738122,1747740639088,-430.0,0.00016438,2]
[361738123,1747740639098,-430.0,0.00016438,2]
[361738124,1747740639107,-430.0,0.00016438,2]
[361738125,1747740639117,-430.0,0.00016438,2]
[361738126,1747740639126,-430.0,0.00016438,2]
[361738127,1747740639136,-430.0,0.00016438,2]
[361738128,1747740639146,-232.04286677,0.00016438,2]
[361738129,1747740639155,-430.0,0.00016438,2]
[361738130,1747740639165,-430.0,0.00016438,2]
[361738131,1747740639175,-450.0,0.00016438,2]
[361738132,1747740639184,-430.0,0.00016438,2]
[361738133,1747740639194,-350.0,0.00016438,2]
[361738134,1747740639204,-350.0,0.00016438,2]
[361738135,1747740639214,-430.0,0.00016438,2]
[361738136,1747740639223,-430.0,0.00016438,2]
[361738137,1747740639232,-430.0,0.00016438,2]
[361738138,1747740639242,-430.0,0.00016438,2]
[361738139,1747740639251,-430.0,0.00016438,2]
[361738140,1747740639261,-430.0,0.00016438,2]
[361738141,1747740639271,-430.0,0.00016438,2]
[361738142,1747740639281,-416.45315895,0.00016438,2]
[361738143,1747740639291,-430.0,0.00016438,2]
[361738144,1747740639300,-430.0,0.00016438,2]
[361738145,1747740639310,-572.23,0.00016438,2]
[361738146,1747740639319,-1391.31,0.00016438,2]
[361738147,1747740639329,-350.0,0.00016438,2]